bitfinex/quotes_SOLUSD_20241202
["timestamp","ask_amount","ask_price","bid_price","bid_amount"]
[1733140853144,20.0,225.02,224.89,4.447]
[1733140853326,135.2,225.0,224.88,15.4389]
[1733140853647,20.0,224.97,224.91,0.12549]
[1733140854024,20.0,225.0,224.91,0.12549]
[1733140854224,20.0,225.0,224.88,15.4389]
[1733140854225,20.0,224.94,224.88,15.4389]
[1733140854448,20.0,224.93,224.79,21.4514]
[1733140854820,20.0,224.92,224.8,4.447]
[1733140855244,20.0,224.91,224.8,4.447]
[1733140855460,155.2,224.91,224.8,4.447]
[1733140856544,20.0,224.92,224.8,4.447]
[1733140857062,20.0,224.92,224.81,0.12549]
[1733140857221,20.0,224.92,224.8,4.447]
[1733140857643,20.0,224.92,224.81,0.25098]
[1733140858350,20.0,224.92,224.79,21.4514]
[1733140858556,20.0,224.92,224.8,0.12549]
[1733140858739,20.0,224.92,224.8,4.82347]
[1733140859226,20.0,224.95,224.83,0.12549]
[1733140859428,20.0,224.94,224.83,0.12549]
[1733140859648,20.0,224.94,224.84,0.25098]
[1733140859831,20.0,224.94,224.85,0.12549]
[1733140860753,20.0,225.0,224.9,0.12549]
[1733140860953,20.0,224.99,224.91,0.12549]
[1733140861631,135.2,225.01,224.91,0.12549]
[1733140862225,135.2,225.03,224.91,0.12549]
[1733140863431,20.0,225.0,224.86,6.0434]
[1733140863634,20.0,224.94,224.86,6.0434]
[1733140864047,20.0,224.94,224.87,0.12549]
[1733140864346,20.0,224.94,224.86,6.0434]
[1733140865136,20.0,224.94,224.87,0.12549]
[1733140865343,20.0,224.94,224.87,0.25098]
[1733140865932,20.0,224.94,224.87,0.12549]
[1733140868146,20.0,224.94,224.86,6.0434]
[1733140868458,20.0,224.93,224.86,6.0434]
[1733140868633,2.80832146,224.95,224.8,13.05833218]
[1733140868634,20.0,224.89,224.8,6.1237]
[1733140868834,20.0,224.89,224.81,0.37647]
[1733140868835,20.0,224.88,224.81,0.37647]
[1733140869040,20.0,224.88,224.81,0.12549]
[1733140869246,20.0,224.88,224.81,0.25098]
[1733140869556,135.2,224.91,224.83,0.25098]
[1733140870132,26.19821055,225.12,224.89,0.37647]
[1733140870133,135.2,225.03,224.89,0.37647]
[1733140870332,135.2,225.02,224.89,13.43480218]
[1733140870548,135.2,225.02,224.89,0.37647]
[1733140871150,135.2,225.02,224.87,0.12549]
[1733140871151,140.2,225.02,224.87,0.12549]
[1733140871375,20.0,224.99,224.87,0.12549]
[1733140871656,20.0,224.99,224.87,0.37647]
[1733140872159,23.776884,224.98,224.87,0.37647]
[1733140872459,19.97920145,224.91,224.87,0.37647]
[1733140873439,19.97920145,224.91,224.87,0.25098]
[1733140873642,23.776884,224.9,224.86,6.1397]
[1733140874568,20.0,224.87,224.81,21.9209]
[1733140875446,20.0,224.87,224.82,4.57249]
[1733140876440,20.0,224.83,224.81,6.0856]
[1733140877843,20.0,224.83,224.82,0.12549]
[1733140878161,20.0,224.83,224.82,0.25098]
[1733140878371,158.976884,224.93,224.82,0.25098]
[1733140878555,23.776884,224.89,224.82,0.25098]
[1733140878753,135.2,224.97,224.85,0.12549]
[1733140878950,5.0,225.06,224.86,0.25098]
[1733140878951,135.2,224.96,224.86,0.25098]
[1733140879273,135.2,224.97,224.89,0.12549]
[1733140879471,135.2,225.02,224.89,0.12549]
[1733140879853,135.2,225.02,224.88,0.12549]
[1733140880060,135.2,225.02,224.87,0.25098]
[1733140880061,140.2,225.02,224.87,0.25098]
[1733140880267,23.776884,225.01,224.87,0.25098]
[1733140880472,23.776884,224.96,224.87,0.25098]
[1733140880774,43.776884,224.92,224.82,4.447]
[1733140880957,43.776884,224.92,224.83,0.12549]
[1733140881269,20.0,224.86,224.82,4.447]
[1733140881446,20.0,224.87,224.82,4.447]
[1733140881777,20.0,224.87,224.83,0.25098]
[1733140882574,20.0,224.87,224.84,0.12549]
[1733140883247,20.0,224.87,224.82,0.12549]
[1733140883771,20.0,224.87,224.82,0.37647]
[1733140885550,20.0,224.87,224.82,4.69798]
[1733140885955,20.0,224.83,224.76,21.4879]
[1733140886956,20.0,224.83,224.77,0.12549]
[1733140887656,20.0,224.83,224.77,0.25098]
[1733140887960,20.0,224.9,224.77,4.69798]
[1733140888154,20.0,224.89,224.8,0.25098]
[1733140888468,20.0,224.89,224.81,0.12549]
[1733140888984,20.0,224.89,224.77,0.12549]
[1733140889550,135.2,224.87,224.76,21.4879]
[1733140889756,0.08750123,224.78,224.76,21.4879]
[1733140890057,0.08750123,224.78,224.76,6.0068]
[1733140890383,0.08750123,224.78,224.75,0.539936]
[1733140891581,43.776884,224.76,224.75,0.539936]
[1733140895274,59.250584,224.76,224.75,0.539936]
[1733140898979,62.12492988,224.76,224.75,0.539936]
[1733140900965,18.34804588,224.76,224.75,0.539936]
[1733140902162,0.08750123,224.78,224.75,0.539936]
[1733140902163,23.776884,224.77,224.75,0.539936]
[1733140906725,0.08750123,224.78,224.75,0.539936]
[1733140908188,43.776884,224.76,224.75,0.539936]
[1733140909785,43.86075713,224.76,224.75,0.539936]
[1733140911404,43.98624713,224.76,224.75,0.539936]
[1733140913092,48.902374,224.72,224.6,6.1859]
[1733140913294,5.0,224.71,224.6,6.1859]
[1733140913674,48.902374,224.72,224.6,6.1859]
[1733140913875,20.0,224.67,224.6,6.1859]
[1733140914777,20.0,224.67,224.61,0.25098]
[1733140914977,20.0,224.68,224.61,0.25098]
[1733140916209,20.0,224.68,224.63,0.12549]
[1733140917311,20.0,224.64,224.61,0.12549]
[1733140917593,20.0,224.64,224.61,0.25098]
[1733140918397,20.0,224.64,224.52,4.986936]
[1733140918589,20.0,224.64,224.56,0.12549]
[1733140918781,20.0,224.64,224.56,0.37647]
[1733140920384,158.976884,224.68,224.56,0.37647]
[1733140920705,158.976884,224.68,224.56,13.43480218]
[1733140921410,135.2,224.74,224.61,0.12549]
[1733140922482,20.0,224.71,224.61,0.12549]
[1733140922904,135.2,224.75,224.65,0.12549]
[1733140924501,20.0,224.72,224.65,0.12549]
[1733140925202,23.776884,224.71,224.65,0.12549]
[1733140925508,20.0,224.68,224.63,15.7331]
[1733140925896,20.0,224.68,224.63,0.12549]
[1733140926493,20.0,224.68,224.63,0.25098]
[1733140927389,20.0,224.68,224.64,0.12549]
[1733140927904,20.0,224.68,224.63,0.25098]
[1733140928807,20.0,224.64,224.58,15.5572]
[1733140929111,43.776884,224.63,224.53,15.9062]
[1733140929282,20.0,224.63,224.53,15.9062]
[1733140929490,20.0,224.63,224.53,28.96453218]
[1733140929698,0.09521289,224.54,224.53,28.96453218]
[1733140930005,0.07654284,224.57,224.53,28.96453218]
[1733140930186,0.07654284,224.57,224.54,0.25098]
[1733140930596,0.07654284,224.57,224.53,15.9062]
[1733140931207,0.07654284,224.57,224.54,0.25098]
[1733140931513,0.07654284,224.57,224.52,0.539936]
[1733140931719,20.0,224.54,224.52,0.539936]
[1733140933899,20.0,224.54,224.53,0.12549]
[1733140934409,0.07654284,224.57,224.54,0.25098]
[1733140935295,0.07654284,224.57,224.54,0.12549]
[1733140935602,0.07654284,224.57,224.56,0.12549]
[1733140938694,23.776884,224.54,224.52,0.539936]
[1733140938892,23.776884,224.54,224.43,6.0581]
[1733140938893,20.0,224.51,224.43,6.0581]
[1733140939822,20.0,224.53,224.43,6.94692618]
[1733140940026,20.0,224.53,224.43,27.93497924]
[1733140940308,20.0,224.53,224.44,0.25098]
[1733140940688,20.0,224.55,224.44,0.25098]
[1733140941088,20.0,224.51,224.43,6.0581]
[1733140941302,20.0,224.51,224.44,0.25098]
[1733140941616,0.07654284,224.57,224.46,0.25098]
[1733140941815,0.07654284,224.57,224.47,21.23903306]
[1733140941816,20.0,224.56,224.47,21.23903306]
[1733140942024,0.07654284,224.57,224.49,21.23903306]
[1733140942193,0.07654284,224.57,224.51,0.25098]
[1733140942397,0.07654284,224.57,224.52,0.12549]
[1733140942990,0.07654284,224.57,224.54,0.12549]
[1733140943912,0.07654284,224.57,224.56,0.12549]
[1733140944110,0.07654284,224.57,224.56,22.25275093]
[1733140944500,0.07654284,224.57,224.56,0.37647]
[1733140946022,0.07654284,224.57,224.56,21.36452306]
[1733140947507,0.08322602,224.58,224.57,24.153354]
[1733140947721,0.08322602,224.58,224.57,46.02941524]
[1733140949709,0.16427323,224.58,224.57,1.26447818]
[1733140950309,0.08104721,224.58,224.57,22.25253124]
[1733140950997,0.08474135,224.6,224.57,50.47641524]
[1733140951202,0.08474135,224.6,224.59,45.14140706]
[1733140951407,0.08474135,224.6,224.59,46.0293362]
[1733140951609,0.08474135,224.6,224.59,57.5525362]
[1733140952631,0.08474135,224.6,224.59,6.5232]
[1733140953201,0.08474135,224.6,224.54,6.2563]
[1733140953514,0.08474135,224.6,224.55,0.88820074]
[1733140954234,0.08474135,224.6,224.54,6.2563]
[1733140955219,0.08474135,224.6,224.55,0.25098]
[1733140955530,0.08474135,224.6,224.55,4.447]
[1733140956013,0.08474135,224.6,224.56,0.12549]
[1733140956330,0.08474135,224.6,224.51,0.12549]
[1733140956529,0.08474135,224.6,224.51,0.25098]
[1733140956737,0.08474135,224.6,224.51,5.58639696]
[1733140957414,0.08474135,224.6,224.52,0.12549]
[1733140957833,0.08474135,224.6,224.54,0.12549]
[1733140958038,0.08474135,224.6,224.59,0.25098]
[1733140958613,0.08474135,224.6,224.59,0.12549]
[1733140959616,0.08474135,224.6,224.57,0.12549]
[1733140959925,0.08474135,224.6,224.57,0.25098]
[1733140960123,0.08474135,224.6,224.59,0.37647]
[1733140964430,0.08474135,224.6,224.55,0.88803254]
[1733140964621,0.08474135,224.6,224.52,0.88824061]
[1733140965547,0.08474135,224.6,224.53,21.23903306]
[1733140965737,0.08474135,224.6,224.55,0.25098]
[1733140965924,0.08474135,224.6,224.57,0.25098]
[1733140966337,0.08474135,224.6,224.58,0.12549]
[1733140966644,0.08474135,224.6,224.59,0.37647]
[1733140967825,0.08474135,224.6,224.59,24.153354]
[1733140968237,0.08474135,224.6,224.59,45.14140706]
[1733140968843,0.08474135,224.6,224.59,24.153354]
[1733140969339,0.08474135,224.6,224.59,25.04144965]
[1733140969830,0.17778808,224.6,224.59,25.04144965]
[1733140970230,0.09304673,224.6,224.59,29.48844965]
[1733140970553,0.09304673,224.6,224.59,46.02950271]
[1733140970727,0.09304673,224.6,224.59,50.47650271]
[1733140971047,0.0831513,224.61,224.6,10.8954]
[1733140971236,0.0831513,224.61,224.6,56.03680706]
[1733140971750,0.0831513,224.61,224.6,56.92475771]
[1733140973128,0.09007424,224.62,224.61,28.600354]
[1733140973322,0.09007424,224.62,224.61,49.58840706]
[1733140973736,0.09007424,224.62,224.61,28.600354]
[1733140974132,0.09007424,224.62,224.61,4.82347]
[1733140974340,0.09007424,224.62,224.57,5.33509007]
[1733140975551,0.09007424,224.62,224.57,0.88809007]
[1733140975752,0.09007424,224.62,224.56,4.447]
[1733140976632,0.09007424,224.62,224.58,0.12549]
[1733140977048,0.09007424,224.62,224.57,0.25098]
[1733140977253,0.09007424,224.62,224.55,4.447]
[1733140977449,15.50077424,224.62,224.55,4.447]
[1733140977640,15.50077424,224.62,224.53,0.25098]
[1733140978435,15.50077424,224.62,224.55,0.25098]
[1733140978634,15.50077424,224.62,224.56,0.12549]
[1733140979536,15.50077424,224.62,224.57,4.69798]
[1733140979855,15.50077424,224.62,224.58,0.12549]
[1733140980734,15.50077424,224.62,224.59,0.25098]
[1733140981134,15.50077424,224.62,224.6,0.12549]
[1733140982734,13.82436635,224.62,224.6,0.12549]
[1733140982935,0.08378274,224.63,224.61,0.25098]
[1733140983161,0.08378274,224.63,224.62,0.12549]
[1733140983654,0.08378274,224.63,224.62,38.14298843]
[1733140983853,0.08378274,224.63,224.62,42.58998843]
[1733140984065,0.08378274,224.63,224.62,47.58998843]
[1733140984364,0.08378274,224.63,224.62,60.69160032]
[1733140984544,6.4993,224.81,224.64,28.600354]
[1733140984746,6.4993,224.81,224.64,42.58963192]
[1733140985554,0.08733392,224.67,224.66,33.600354]
[1733140985757,0.01059847,224.69,224.68,60.230354]
[1733140985966,0.01059847,224.69,224.68,82.04475399]
[1733140986135,0.01059847,224.69,224.68,77.04475399]
[1733140986486,0.01059847,224.69,224.68,50.41475399]
[1733140986639,0.01059847,224.69,224.68,28.349374]
[1733140986838,0.01059847,224.69,224.62,5.33471828]
[1733140987753,0.01059847,224.69,224.63,0.25098]
[1733140987940,0.01059847,224.69,224.63,0.12549]
[1733140988333,0.01059847,224.69,224.61,4.447]
[1733140989044,0.01059847,224.69,224.62,0.25098]
[1733140989247,0.01059847,224.69,224.59,4.447]
[1733140989561,0.01059847,224.69,224.6,0.25098]
[1733140990258,20.0,224.7,224.59,0.25098]
[1733140990465,20.0,224.7,224.6,0.12549]
[1733140992943,20.0,224.7,224.58,0.12549]
[1733140993143,20.0,224.7,224.59,0.25098]
[1733140993345,20.0,224.7,224.6,0.12549]
[1733140994741,15.3149,224.7,224.6,0.12549]
[1733140994965,20.0,224.67,224.6,0.12549]
[1733140995263,20.0,224.67,224.58,0.12549]
[1733140995966,20.0,224.67,224.6,0.12549]
[1733140997557,15.3149,224.7,224.62,0.12549]
[1733140997951,15.3149,224.7,224.66,0.12549]
[1733140998467,16.1245,224.75,224.66,0.12549]
[1733140999555,20.0,224.72,224.66,0.12549]
[1733141001273,20.0,224.72,224.57,0.12549]
[1733141001655,20.0,224.72,224.57,23.902374]
[1733141001970,20.0,224.72,224.59,0.12549]
[1733141005073,20.0,224.72,224.6,0.12549]
[1733141005279,20.0,224.72,224.61,0.25098]
[1733141005451,20.0,224.72,224.62,0.12549]
[1733141006452,151.3245,224.75,224.62,0.12549]
[1733141006682,16.1245,224.75,224.65,0.12549]
[1733141008457,20.0,224.72,224.65,0.12549]
[1733141010582,16.1245,224.75,224.67,0.12549]
[1733141011575,9.29248284,224.82,224.67,0.12549]
[1733141011576,6.5049,224.82,224.69,0.12549]
[1733141011881,15.545,224.81,224.69,0.12549]
[1733141013077,20.0,224.78,224.69,0.12549]
[1733141014185,20.0,224.78,224.7,0.25098]
[1733141014485,15.545,224.81,224.73,0.12549]
[1733141015261,15.7063,224.87,224.75,0.12549]
[1733141015469,15.7063,224.87,224.79,0.12549]
[1733141015860,6.1298,224.93,224.81,0.12549]
[1733141016057,6.1298,224.93,224.83,0.12549]
[1733141016058,21.1471,224.93,224.83,0.12549]
[1733141017472,20.0,224.9,224.83,0.12549]
[1733141017784,21.1471,224.93,224.83,0.12549]
[1733141019784,15.0173,224.93,224.83,0.12549]
[1733141020092,20.0,224.9,224.83,0.12549]
[1733141020462,15.8562,224.98,224.85,0.12549]
[1733141022077,20.0,224.95,224.85,0.12549]
[1733141022987,20.0,224.95,224.86,0.25098]
[1733141023171,20.0,224.95,224.87,0.12549]
[1733141032392,20.0,224.95,224.8,15.0924]
[1733141032602,20.0,224.95,224.79,6.0298]
[1733141032776,20.0,224.93,224.79,6.0298]
[1733141032976,20.0,224.91,224.79,6.0298]
[1733141033602,20.0,224.92,224.79,6.0298]
[1733141033901,20.0,224.92,224.8,0.25098]
[1733141034192,20.0,224.92,224.81,0.12549]
[1733141035083,23.776884,224.91,224.79,6.0298]
[1733141035391,23.776884,224.95,224.79,6.0298]
[1733141035392,20.0,224.88,224.79,6.0298]
[1733141035594,20.0,224.88,224.8,0.25098]
[1733141035788,20.0,224.91,224.8,0.12549]
[1733141035968,20.0,224.91,224.8,0.25098]
[1733141036697,20.0,224.91,224.82,0.12549]
[1733141037278,20.0,224.91,224.81,0.25098]
[1733141037887,20.0,224.91,224.81,0.12549]
[1733141038800,2.75480455,224.96,224.81,0.12549]
[1733141038976,15.8562,224.98,224.81,0.12549]
[1733141039691,15.8562,224.98,224.83,0.12549]
[1733141039883,20.0,224.95,224.83,0.12549]
[1733141040079,15.8562,224.98,224.87,0.12549]
[1733141040507,23.776884,224.97,224.87,0.12549]
[1733141041293,15.8562,224.98,224.87,0.12549]
[1733141041503,20.0,224.95,224.87,0.12549]
[1733141043592,20.0,224.91,224.79,6.0298]
[1733141043900,20.0,224.91,224.8,0.25098]
[1733141044788,20.0,224.91,224.79,6.0298]
[1733141045102,20.0,224.91,224.8,0.12549]
[1733141045400,20.0,224.91,224.82,0.12549]
[1733141046812,20.0,224.91,224.76,4.447]
[1733141046813,20.0,224.87,224.73,4.447]
[1733141046999,20.0,224.87,224.74,6.5217]
[1733141047305,20.0,224.85,224.74,6.5217]
[1733141047895,20.0,224.85,224.75,0.25098]
[1733141048403,20.0,224.85,224.74,6.5217]
[1733141048590,20.0,224.85,224.75,0.25098]
[1733141048795,20.0,224.85,224.76,0.12549]
[1733141049089,20.0,224.85,224.78,0.12549]
[1733141049479,20.0,224.9,224.78,0.12549]
[1733141050393,146.749178,224.98,224.81,0.37647]
[1733141050597,15.9033,224.99,224.84,0.12549]
[1733141051100,135.2,225.0,224.84,0.12549]
[1733141051302,15.9033,225.05,224.88,0.37647]
[1733141051495,15.9033,225.05,224.88,1.26333201]
[1733141052215,18.76427789,225.05,224.88,5.71033201]
[1733141052698,20.0,225.02,224.88,5.71033201]
[1733141055912,20.0,225.02,224.9,0.37647]
[1733141056791,15.9033,225.05,224.9,1.26329592]
[1733141056986,15.9033,225.05,224.92,0.37647]
[1733141057313,23.776884,225.08,224.92,4.82347]
[1733141057809,0.539936,225.09,224.92,4.82347]
[1733141058005,3.3442675,225.09,224.92,5.71016163]
[1733141058207,0.539936,225.09,224.92,18.77703217]
[1733141058591,0.539936,225.09,224.97,0.12549]
[1733141058797,0.539936,225.09,224.99,0.12549]
[1733141060593,0.539936,225.09,225.03,0.12549]
[1733141069518,0.539936,225.09,225.05,0.12549]
[1733141069907,0.539936,225.09,225.07,4.82347]
[1733141070522,0.539936,225.09,225.07,14.32958881]
[1733141070715,0.539936,225.09,225.08,28.349374]
[1733141070907,0.539936,225.09,225.08,41.66722454]
[1733141071111,0.539936,225.09,225.08,53.25672454]
[1733141071820,0.539936,225.09,225.08,57.70372454]
[1733141072310,0.539936,225.09,225.08,44.636854]
[1733141072515,0.539936,225.09,225.08,16.41297]
[1733141072819,0.539936,225.09,225.06,6.0494]
[1733141073216,0.539936,225.09,225.07,0.25098]
[1733141073924,0.539936,225.09,225.07,0.12549]
[1733141074234,0.539936,225.09,225.03,20.2058]
[1733141075116,0.539936,225.09,225.04,0.25098]
[1733141075318,0.539936,225.09,225.05,0.12549]
[1733141078340,0.539936,225.09,225.01,6.6314]
[1733141078520,0.539936,225.09,224.97,15.1763]
[1733141079045,0.539936,225.09,224.98,0.25098]
[1733141079230,0.539936,225.09,225.0,0.25098]
[1733141079627,0.539936,225.09,225.01,0.12549]
[1733141079836,0.539936,225.09,225.03,0.12549]
[1733141082539,15.8274,225.08,224.95,6.0484]
[1733141082834,20.0,225.05,224.95,6.0484]
[1733141083926,20.0,225.05,224.96,0.37647]
[1733141085333,20.0,225.05,224.96,4.82347]
[1733141085636,20.0,225.05,224.92,15.0935]
[1733141085815,20.0,225.05,224.9,5.33366821]
[1733141087119,20.0,225.05,224.91,0.25098]
[1733141087516,20.0,225.05,224.92,0.12549]
[1733141088217,15.8274,225.08,224.93,24.027864]
[1733141088522,0.539936,225.09,225.02,0.12549]
[1733141088720,0.539936,225.09,225.04,0.12549]
[1733141088925,0.539936,225.09,225.06,0.12549]
[1733141089437,0.539936,225.09,225.08,0.12549]
[1733141092929,0.539936,225.09,225.07,0.12549]
[1733141093126,0.539936,225.09,225.01,0.12549]
[1733141093328,0.539936,225.09,224.97,5.33344754]
[1733141093533,0.539936,225.09,224.98,0.25098]
[1733141093938,20.0,225.07,224.98,0.25098]
[1733141094138,20.0,225.07,225.0,0.25098]
[1733141094445,20.0,225.07,225.01,0.12549]
[1733141094948,20.0,225.07,224.97,5.33344311]
[1733141095127,20.0,225.07,224.98,0.12549]
[1733141095436,20.0,225.07,224.98,0.25098]
[1733141095842,20.0,225.07,225.0,0.25098]
[1733141096221,20.0,225.07,225.01,0.12549]
[1733141099355,0.539936,225.09,225.01,0.12549]
[1733141100246,0.539936,225.09,225.04,0.37647]
[1733141103459,15.5144,225.07,224.97,4.447]
[1733141103753,20.0,225.04,224.97,4.447]
[1733141104255,20.0,225.04,224.96,0.25098]
[1733141104642,15.5144,225.07,224.99,0.12549]
[1733141104834,20.0,225.04,224.99,0.12549]
[1733141105231,20.0,225.04,224.93,0.88649654]
[1733141105651,20.0,225.04,224.94,0.25098]
[1733141105857,20.0,225.04,224.93,0.88649654]
[1733141106159,20.0,225.04,224.92,0.88670372]
[1733141106534,20.0,225.04,224.93,0.25098]
[1733141107657,20.0,225.04,224.94,0.12549]
[1733141108356,20.0,225.04,224.92,0.88670372]
[1733141108649,20.0,225.02,224.86,4.447]
[1733141109060,20.0,225.02,224.86,5.33393875]
[1733141109384,20.0,225.02,224.88,13.31785054]
[1733141109657,20.0,225.02,224.9,4.69798]
[1733141109831,20.0,225.02,224.91,0.12549]
[1733141110337,20.0,225.02,224.92,0.25098]
[1733141110533,20.0,225.04,224.93,0.12549]
[1733141110932,16.5022,224.99,224.86,4.447]
[1733141111330,16.5022,224.99,224.87,0.25098]
[1733141111558,20.0,224.96,224.87,0.12549]
[1733141111934,20.0,224.96,224.86,0.25098]
[1733141112551,20.0,224.96,224.85,4.447]
[1733141112846,20.0,224.95,224.81,5.33397179]
[1733141113043,20.0,224.95,224.8,6.0753]
[1733141113246,6.4062,224.94,224.75,34.72197054]
[1733141113469,20.0,224.91,224.77,0.25098]
[1733141113838,20.0,224.91,224.76,5.33423356]
[1733141114037,20.0,224.87,224.76,5.33423356]
[1733141114248,20.0,224.87,224.75,6.0753]
[1733141114761,20.0,224.87,224.73,0.88743971]
[1733141114935,20.0,224.87,224.74,0.25098]
[1733141115132,20.0,224.87,224.72,4.447]
[1733141115332,20.0,224.86,224.71,0.88748609]
[1733141115559,20.0,224.86,224.69,21.5697]
[1733141115851,16.4923,224.84,224.69,6.1282]
[1733141116042,20.0,224.81,224.65,0.88771238]
[1733141116251,20.0,224.81,224.64,22.3684]
[1733141116441,20.0,224.8,224.65,0.88779858]
[1733141116653,20.0,224.8,224.65,13.95466912]
[1733141117059,20.0,224.8,224.66,0.25098]
[1733141117268,20.0,224.8,224.68,0.12549]
[1733141117559,20.0,224.81,224.7,0.12549]
[1733141118059,16.4923,224.84,224.71,0.88765597]
[1733141118276,16.4923,224.84,224.64,27.3684]
[1733141118277,16.4923,224.84,224.66,13.95440393]
[1733141118471,16.4923,224.84,224.67,23.902374]
[1733141118766,16.4923,224.84,224.69,0.37647]
[1733141119155,23.776884,224.83,224.69,0.37647]
[1733141119341,20.0,224.8,224.69,0.37647]
[1733141119549,20.0,224.79,224.64,6.1368]
[1733141119742,23.776884,224.78,224.64,6.1368]
[1733141119941,23.776884,224.78,224.65,0.25098]
[1733141120168,20.0,224.79,224.65,0.25098]
[1733141120662,20.0,224.79,224.65,13.31785054]
[1733141121047,20.0,224.79,224.66,0.12549]
[1733141121452,20.0,224.78,224.66,0.12549]
[1733141122471,140.2,224.81,224.6,13.95472584]
[1733141122472,20.0,224.74,224.6,13.95472584]
[1733141122641,20.0,224.74,224.6,0.8878553]
[1733141122848,20.0,224.74,224.61,0.25098]
[1733141123153,20.0,224.72,224.61,0.25098]
[1733141123661,20.0,224.72,224.6,0.12549]
[1733141123972,20.0,224.72,224.58,6.4727]
[1733141124757,20.0,224.72,224.59,0.25098]
[1733141124963,20.0,224.72,224.53,4.447]
[1733141124964,20.0,224.67,224.54,0.88813442]
[1733141125759,20.0,224.67,224.55,0.25098]
[1733141126169,20.0,224.67,224.56,0.12549]
[1733141126365,20.0,224.67,224.55,0.25098]
[1733141126871,20.0,224.67,224.54,0.12549]
[1733141127058,20.0,224.67,224.54,0.37647]
[1733141127373,20.0,224.63,224.49,13.06687054]
[1733141127575,20.0,224.63,224.48,6.3222]
[1733141127576,20.0,224.62,224.48,6.3222]
[1733141127750,20.0,224.58,224.48,6.3222]
[1733141127948,20.0,224.58,224.49,0.25098]
[1733141128159,20.0,224.58,224.48,6.3222]
[1733141128479,20.0,224.58,224.49,13.95535859]
[1733141128766,20.0,224.58,224.5,13.19236054]
[1733141128967,20.0,224.58,224.5,0.12549]
[1733141129153,20.0,224.58,224.48,6.3222]
[1733141129352,20.0,224.58,224.49,0.25098]
[1733141130167,20.0,224.58,224.5,0.12549]
[1733141130370,20.0,224.58,224.5,0.25098]
[1733141131273,20.0,224.58,224.5,0.12549]
[1733141131575,20.0,224.58,224.49,0.37647]
[1733141131894,20.0,224.58,224.52,0.12549]
[1733141133249,135.2,224.7,224.5,36.84375454]
[1733141133250,15.3431,224.66,224.55,0.25098]
[1733141133448,21.5416,224.71,224.6,0.12549]
[1733141133679,15.3431,224.71,224.63,0.25098]
[1733141133880,16.4629,224.76,224.64,0.12549]
[1733141134082,16.4629,224.76,224.67,0.25098]
[1733141134252,16.4629,224.76,224.7,0.12549]
[1733141135281,16.4629,224.82,224.7,0.12549]
[1733141135579,32.39491764,224.88,224.74,13.44334054]
[1733141135879,32.39491764,224.88,224.78,0.12549]
[1733141136664,22.6155,224.88,224.78,0.12549]
[1733141138475,23.776884,224.87,224.78,0.12549]
[1733141138886,23.776884,224.85,224.67,23.776884]
[1733141139053,23.776884,224.83,224.66,6.444]
[1733141139256,20.0,224.8,224.69,0.25098]
[1733141139452,20.0,224.82,224.69,13.31785054]
[1733141139674,20.0,224.81,224.69,13.31785054]
[1733141139884,20.0,224.81,224.69,0.25098]
[1733141140875,20.0,224.81,224.7,0.12549]
[1733141141077,20.0,224.81,224.69,0.25098]
[1733141142374,20.0,224.81,224.7,0.12549]
[1733141144658,20.0,224.81,224.73,0.37647]
[1733141144856,23.776884,224.87,224.73,0.37647]